[Event "4NCL 2022-2023"]
[Site "Daventry"]
[Date "2023.03.18"]
[Round "7.44"]
[White "Thorarinsson, Pall A."]
[Black "Bates, Richard A"]
[Result "0-1"]
[ECO "E33"]
[WhiteElo "2169"]
[BlackElo "2329"]
[Annotator "TA"]
[PlyCount "42"]
[EventDate "2022.10.20"]
[EventType "team-tourn"]
[EventCountry "ENG"]
[SourceTitle "playchess.com"]
[Source "ChessBase"]
[SourceQuality "1"]
[TimeControl "40/6000+30:2400+30"]

{[%evp 17,42,33,25,18,19,5,7,8,21,21,16,19,21,14,55,-41,-52,-50,-47,-609,0,0,0,-332,-325,-764,-753]} 1. d4 {[%emt 0:00:03]} Nf6 {[%emt 0:00:39]} 2. c4 {[%emt 0:00:12]} e6 {[%emt 0:00:30]} 3. Nc3 {[%emt 0:00:22]} Bb4 {[%emt 0:00:37]} 4. Qc2 {[%emt 0:00:36]} Nc6 {[%emt 0:00:40]} 5. Nf3 {[%emt 0:00:29]} d6 {[%emt 0:01:06]} 6. Bd2 {[%emt 0:01:04]} O-O {[%emt 0:05:53]} 7. a3 {[%emt 0:00:39]} Bxc3 {[%emt 0:00:07]} 8. Bxc3 {[%emt 0:00:04]} Qe7 {[%emt 0:00:50]} 9. e3 {[%emt 0:02:08]} e5 {[%emt 0:02:06]} 10. d5 {[%emt 0:04:12] E33: Nimzo-Indian: Classical: 4...Nc6.} Nb8 {[%emt 0:00:12][%cal Bc6b8,Bb8d7,Bd7c5][%mdl 32]} 11. Bd3 {[%emt 0:03:29]} Nbd7 {[%emt 0:05:29] [#] And now ...e4 would win. 11...a5 is more fashionable.} 12. Nd2 {[%emt 0:02:41] The position is equal.} Nc5 {[%emt 0:00:52]} 13. O-O {[%emt 0:02:02]} Bd7 {[%emt 0:04:47]} 14. f4 {[%emt 0:36:54]} exf4 {[%emt 0:03:21]} 15. Rae1 {[%emt 0:05:47] [#]} (15. Bxf6 $2 Qxe3+ 16. Kh1 Nxd3 $19) 15... Rfe8 $146 {[%emt 0:17:11][%cal Bf8e8,Be8e1,Be1c1][%mdl 32]} (15... fxe3 $2 16. Bxf6 gxf6 17. Bxh7+ Kg7 18. Rf3 $16) ({Predecessor:} 15... Nxd3 16. Qxd3 f3 17. gxf3 Bh3 18. Rf2 Nd7 19. Kh1 f6 20. e4 Nc5 21. Qc2 c6 {1-0 Rowson,J (2546)-Bates,R (2346) BCF-chT 2223 (4NCL) 2022 (2.4)}) 16. exf4 {[%emt 0:32:56]} (16. Bxf6 $14 Qxf6 17. Bxh7+ (17. exf4 $2 {perishes.} Qd4+ 18. Kh1 Nxd3 $19) 17... Kf8 18. b4 (18. Rxf4 Qxf4 19. exf4 Rxe1+ 20. Kf2 Rae8 $17)) 16... Qxe1 $15 {[%emt 0:02:21]} 17. Rxe1 {[%emt 0:01:13]} Rxe1+ {[%emt 0:00:13]} 18. Kf2 $2 {[%emt 0:00:08][%mdl 8192]} (18. Nf1 $15 Ba4 {[%mdl 64] Deflection} 19. Qf2 Nxd3 20. Qg3) 18... Rae8 $2 {[%emt 0:14:16]} ({Better is} 18... Rc1 $19 19. Bxf6 (19. Qxc1 $2 {too greedy.} Nxd3+ 20. Kf3 Nxc1 $19) (19. Bxh7+ $2 Nxh7 20. Qxc1 Nd3+ 21. Kf3 Nxc1 $19) 19... Rxc2 20. Bxc2 gxf6) 19. Bxf6 $11 {[%emt 0:05:08]} gxf6 {[%emt 0:04:54]} 20. Bxh7+ $2 {[%emt 0:02:47][%mdl 8192]} (20. Bf1 $11 {and White is okay.}) 20... Kg7 $19 {[%emt 0:00:12]} 21. Bd3 {[%emt 0:00:32] [#] Repels R8e2+} (21. Nf3 R8e2+ 22. Qxe2 Rxe2+ 23. Kxe2 Kxh7 24. Nd4) 21... Rc1 $3 {[%emt 0:00:25][%mdl 576] Decoy. An interesting game.   Weighted Error Value: White=1.69/Black=0.68} 0-1

[Event "4NCL 2022-2023"]
[Site "Daventry"]
[Date "2023.03.18"]
[Round "7.45"]
[White "Duncan, Chris R"]
[Black "Venkatesan, Kavin"]
[Result "1/2-1/2"]
[ECO "B31"]
[WhiteElo "2174"]
[BlackElo "2184"]
[Annotator "TA"]
[PlyCount "51"]
[EventDate "2022.10.20"]
[EventType "team-tourn"]
[EventCountry "ENG"]
[SourceTitle "playchess.com"]
[Source "ChessBase"]
[SourceQuality "1"]
[TimeControl "40/6000+30:2400+30"]

{[%evp 12,51,39,17,75,35,39,24,28,22,33,31,66,22,18,-37,-17,-4,-12,-8,40,43,36,42,45,11,16,0,44,10,12,0,0,-12,24,4,27,0,0,0,0,0]} 1. e4 {[%emt 0:07:00]} c5 {[%emt 0:00:19]} 2. Nc3 {[%emt 0:00:07]} Nc6 {[%emt 0:00:10]} 3. Bb5 {[%emt 0:00:30]} Nd4 {[%emt 0:00:09]} 4. Nf3 {[%emt 0:00:32]} g6 {[%emt 0:06:11]} 5. Nxd4 {[%emt 0:02:22]} cxd4 {[%emt 0:00:07]} 6. Ne2 {[%emt 0:00:10]} Bg7 {[%emt 0:08:55]} 7. O-O {[%emt 0:01:44]} e5 {[%emt 0:09:50] B31: Sicilian: 2...Nc6 3 Bb5 g6.} (7... Nf6 $11) 8. c3 {[%emt 0:03:40]} Ne7 {[%emt 0:06:01]} 9. cxd4 {[%emt 0:02:20]} exd4 {[%emt 0:01:21] White has an edge.} 10. d3 {[%emt 0:00:17]} O-O {[%emt 0:02:53]} 11. Bg5 {[%emt 0:05:23] [#]} h6 $146 {[%emt 0:06:40]} ({Predecessor:} 11... f6 12. Bh4 g5 13. Bg3 f5 14. Bd6 Kh8 15. Qa4 a6 16. Rac1 fxe4 17. dxe4 Rf6 {0-1 Belica,M (2108)-Hilzinger,M (2087) Verbandsliga Nord Baden 1112 2011 (2.3)}) 12. Bf4 {[%emt 0:00:59] White has more active pieces.} d5 {[%emt 0:06:07]} 13. Qd2 {[%emt 0:06:36]} (13. Rc1 $11 dxe4 14. dxe4) 13... Qb6 {[%emt 0:08:52]} 14. Ba4 {[%emt 0:00:50]} dxe4 {[%emt 0:04:00]} 15. dxe4 {[%emt 0:00:17]} Bg4 {[%emt 0:08:22]} (15... g5 $11 16. Bg3 f5 17. exf5 Nxf5) 16. h3 $14 {[%emt 0:18:22]} (16. Bxh6 $2 {loses.} Bxh6 17. Qxh6 Bxe2 $19) 16... Bxe2 {[%emt 0:01:53]} 17. Qxe2 {[%emt 0:00:54]} Rfd8 {[%emt 0:05:11]} 18. Qd2 {[%emt 0:03:29]} g5 {[%emt 0:07:26]} 19. Bg3 {[%emt 0:00:14]} Ng6 {[%emt 0:01:01]} (19... d3 $5 {[%cal Rb6d4]}) 20. Rac1 {[%emt 0:02:22] With the idea Bc7.} (20. Bb3 {with more complications.} d3 21. Bd5 Be5 22. Qxd3 Bxg3 23. Qxg3 Nf4 24. Qf3) 20... Rac8 {[%emt 0:01:26] Prevents Bc7.} 21. Bb3 {[%emt 0:01:29]} Rxc1 {[%emt 0:07:02]} 22. Rxc1 {[%emt 0:00:05] [#] Bc7 would be deadly.} Rd7 {[%emt 0:00:24] Dodges Bc7. Black is weak on the light squares} 23. Kh1 {[%emt 0:06:18]} Kh7 {[%emt 0:02:18]} 24. f3 {[%emt 0:02:29]} d3 {[%emt 0:03:25]} 25. Ba4 {[%emt 0:15:59] A strong pair of Bishops.} Qxb2 {[%emt 0:02:43]} 26. Qxb2 {[%emt 0:10:02] Weighted Error Value: White=0.19 (very precise) /Black=0.16 (very precise)} 1/2-1/2

[Event "4NCL 2022-2023"]
[Site "Daventry"]
[Date "2023.03.18"]
[Round "7.46"]
[White "Bourached, Anthony"]
[Black "Webb, Laurence E"]
[Result "0-1"]
[ECO "B13"]
[WhiteElo "2043"]
[BlackElo "2156"]
[Annotator "TA"]
[PlyCount "90"]
[EventDate "2022.10.20"]
[EventType "team-tourn"]
[EventCountry "ENG"]
[SourceTitle "playchess.com"]
[Source "ChessBase"]
[SourceQuality "1"]
[TimeControl "40/6000+30:2400+30"]

{[%evp 9,90,-6,1,-12,-12,0,8,1,0,4,12,5,10,0,4,0,5,0,0,0,0,-28,-20,-13,-25,-31,-27,-31,-24,-21,-24,-24,-4,-8,-6,-18,9,12,27,0,22,4,31,29,30,30,30,30,50,30,24,28,35,22,0,-25,-37,-268,-250,-218,-81,-77,-79,-69,-43,-292,-96,-297,-281,-422,-414,-425,-392,-472,-461,-460,-452,-1063,-781,-1135,-1033,-1423,-1393]} 1. d4 {[%emt 0:00:05]} Nf6 {[%emt 0:00:06]} 2. Nc3 {[%emt 0:00:11]} d5 {[%emt 0:00:16]} 3. Bf4 {[%emt 0:00:09]} c5 {[%emt 0:01:07]} 4. e3 {[%emt 0:00:45]} cxd4 {[%emt 0:00:53]} 5. exd4 {[%emt 0:00:19]} a6 {[%emt 0:00:18]} 6. Bd3 {[%emt 0:00:26] B13: Caro-Kann: Exchange Variation and Panov-Botvinnik Attack.} Nc6 {[%emt 0:00:26]} 7. Nce2 {[%emt 0:00:21]} Nb4 $1 {[%emt 0:02:17][%mdl 4] outshines the older 7...Bg4.} 8. Nf3 {[%emt 0:00:25] The position is equal.} e6 {[%emt 0:01:19]} 9. O-O {[%emt 0:01:47]} Bd7 {[%emt 0:00:29] [#]} 10. Ne5 $146 {[%emt 0:06:56]} ({Predecessor:} 10. b3 Be7 11. c4 Nxd3 12. Qxd3 dxc4 13. bxc4 O-O 14. Rab1 Bc6 15. Ng3 {1-0 Sauer,H (1726)-Lahn,H (1522) GER-ch Seniors 65 2018 (5)}) 10... Be7 {[%emt 0:00:44]} 11. c3 {[%emt 0:11:38]} Nxd3 {[%emt 0:01:52]} 12. Qxd3 {[%emt 0:00:18]} O-O {[%emt 0:06:36]} 13. Rfe1 {[%emt 0:11:24]} b5 {[%emt 0:01:08]} 14. a3 {[%emt 0:05:35]} a5 {[%emt 0:05:47]} 15. b4 {[%emt 0:04:14]} Ne4 {[%emt 0:15:44]} 16. Ng3 {[%emt 0:21:46]} Nd6 {[%emt 0:03:04]} 17. Nh5 {[%emt 0:01:00][%cal Of4h6]} Be8 {[%emt 0:03:41] Strongly threatening ...f6.} 18. Qf3 {[%emt 0:19:07]} ({But not} 18. Qg3 g6 19. bxa5 Kh8 20. Nxf7+ (20. Bh6 $2 Nf5 $19) 20... Rxf7 21. Rxe6 Nf5 $17) 18... f6 {[%emt 0:14:48]} 19. Nd3 {[%emt 0:00:29] Excellent horsemanship.} Ne4 {[%emt 0:00:52]} 20. Nc5 {[%emt 0:07:19]} Bxc5 {[%emt 0:00:46]} 21. bxc5 {[%emt 0:00:29] [#]} e5 $1 {[%emt 0:02:05]} 22. Bc1 {[%emt 0:01:32]} Qd7 {[%emt 0:20:19]} (22... Bxh5 {seems wilder.} 23. Qxh5 Nxc3 24. dxe5 fxe5 25. Qxe5 d4) 23. Ng3 {[%emt 0:01:09]} Bg6 {[%emt 0:00:15]} 24. Nxe4 {[%emt 0:01:47]} (24. h4 $5 {[%cal Rh4h5]}) 24... Bxe4 {[%emt 0:00:14]} 25. Qg3 {[%emt 0:01:49]} exd4 {[%emt 0:02:23]} 26. cxd4 {[%emt 0:00:24]} b4 {[%emt 0:01:27]} 27. axb4 {[%emt 0:00:40]} axb4 {[%emt 0:00:07]} 28. Bd2 {[%emt 0:03:25]} Qb5 {[%emt 0:13:16] aiming for ...Rxa1.} 29. Qb3 {[%emt 0:01:17][%csl LRb4,LRe4] Rxa8 would be deadly.} Rxa1 {[%emt 0:01:08]} 30. Rxa1 {[%emt 0:00:04]} Rb8 {[%emt 0:00:31]} 31. f3 {[%emt 0:04:11]} Qd3 {[%emt 0:00:57]} 32. Qxd3 {[%emt 0:00:22]} (32. Qb2 $5 {[%cal Rf3e4]} Bf5 33. Bf4 $11 {[%mdl 64] Deflection} (33. Bxb4 Qc4 $17)) 32... Bxd3 $11 {[%emt 0:01:09][%mdl 4096] Endgame KRB-KRB} 33. Ra2 $2 {[%emt 0:00:41]} (33. Bf4 $15) 33... b3 $19 {[%emt 0:00:48]} 34. Rb2 {[%emt 0:00:10]} Bc4 {[%emt 0:00:27]} (34... Bc2 $19 {has better winning chances.} 35. Kf2 Ra8) 35. Bc3 $17 {[%emt 0:01:33]} Kf7 {[%emt 0:00:34]} 36. Kf2 {[%emt 0:00:36]} Ke6 {[%emt 0:00:48] Hoping for ...Bd3.} 37. Kg3 $2 {[%emt 0:02:37] [#]} (37. Rb1 $15) 37... Kd7 $2 {[%emt 0:00:58]} (37... Bd3 $1 $19 {And now ...Bc2 would win.} 38. Kf4 Kd7) 38. Kf2 $2 {[%emt 0:00:39] [#]} (38. Rd2 $17) 38... Bd3 $1 $19 {[%emt 0:02:11]} 39. Ke3 {[%emt 0:01:35]} (39. Rd2 $142 Bc2 40. Bb2) 39... Bc2 {[%emt 0:00:22]} 40. Be1 {[%emt 0:00:24]} Kc6 {[%emt 0:00:47]} 41. Kd2 {[%emt 0:40:43]} Ra8 {[%emt 0:41:01] Black is clearly winning.} 42. Ke3 {[%emt 0:00:00]} Ra1 {[%emt 0:00:00]} 43. Kf2 {[%emt 0:00:00]} (43. Bc3 $142 Rd1 44. Bd2) 43... Rd1 {[%emt 0:00:00]} 44. Ke2 {[%emt 0:00:00]} Rxd4 {[%emt 0:00:00] ...Ra4 is the strong threat.} 45. Bf2 {[%emt 0:00:00]} Ra4 {[%emt 0:00:00] Weighted Error Value: White=0.68/Black=0.14 (very precise)} 0-1

[Event "4NCL 2022-2023"]
[Site "Daventry"]
[Date "2023.03.18"]
[Round "7.47"]
[White "Ledger, Dave J"]
[Black "Murray, David"]
[Result "1-0"]
[ECO "B48"]
[WhiteElo "2168"]
[BlackElo "2120"]
[Annotator "TA"]
[PlyCount "237"]
[EventDate "2022.10.20"]
[EventType "team-tourn"]
[EventCountry "ENG"]
[SourceTitle "playchess.com"]
[Source "ChessBase"]
[SourceQuality "1"]
[TimeControl "40/6000+30:2400+30"]

{[%evp 11,236,40,34,35,33,-41,-30,-47,43,6,16,22,20,0,0,0,35,-8,-4,-9,0,-39,-26,-29,-16,-82,0,-105,0,-56,-57,-89,0,0,0,0,0,-8,0,0,0,0,6,26,256,262,232,98,99,65,70,70,104,64,99,82,102,106,150,150,153,147,147,146,136,111,113,106,121,0,95,94,160,106,106,106,136,121,121,121,164,121,295,287,352,352,331,316,316,315,393,360,588,561,411,106,106,106,113,106,351,134,150,0,351,343,3767,3767,3758,3758,3743,3692,3757,3746,3745,3773,3729,3664,3514,3300,2945,2945,2586,2313,1752,1629,1076,714,1119,57,991,918,673,598,598,420,29962,29959,29958,29954,29954,29955,29959,588,29961,29962,29962,29963,29962,29963,29963,29964,29966,29966,29966,29968,29966,29968,29969,29971,29971,29971,29971,29972,29972,29973,29973,29973,29980,29981,29981,29982,29983,4133,29981,29982,29969,4129,29972,29977,29976,29977,29977,29979,29979,29977,29979,29981,29981,29982,29982,4137,29983,29984,29984,29985,29985,29986,29986,29987,29987,29988,29988,29989,29989,29990,29990,29990,29991,29990,29991,29992,29992,29992,29993,29994,29994,29995,29995,29996,29996,29997,29997,29998,29998,29999,29999]} 1. e4 {[%emt 0:00:04]} c5 {[%emt 0:00:13]} 2. Nf3 {[%emt 0:00:21]} e6 {[%emt 0:00:33]} 3. d4 {[%emt 0:00:45]} cxd4 {[%emt 0:00:06]} 4. Nxd4 {[%emt 0:00:03]} Nc6 {[%emt 0:00:43]} 5. Nc3 {[%emt 0:02:29]} Qc7 {[%emt 0:00:34]} 6. Be3 {[%emt 0:01:49]} a6 {[%emt 0:01:44]} 7. Qf3 {[%emt 0:03:26] 7.g4 is a critical line. B48: Sicilian: Taimanov: 5 Nc3 Qc7 6 Be3 a6 without Be2.} Nf6 {[%emt 0:02:58][%cal Of8a3]} 8. Qg3 {[%emt 0:02:57]} (8. O-O-O $14) 8... Qxg3 $1 $15 {[%emt 0:05:36]} 9. hxg3 {[%emt 0:00:08] Black has an edge.} Bb4 {[%emt 0:00:16] [#]} (9... Ng4 $1 $15) 10. Rh4 $146 {[%emt 0:08:34]} ({Predecessor:} 10. f3 d5 11. Nxc6 bxc6 12. e5 Nd7 13. f4 Rb8 14. a3 Bc5 15. Bxc5 Nxc5 16. b4 {½-½ Erigaisi,A (2559)-Nagy,G (2495) Titled Arena 2nd Jan blitz 2021}) 10... e5 {[%emt 0:08:33]} 11. Nxc6 {[%emt 0:08:01]} dxc6 {[%emt 0:04:44]} 12. O-O-O {[%emt 0:02:57]} Be6 {[%emt 0:04:22]} 13. Na4 {[%emt 0:10:27]} Nd7 {[%emt 0:03:29] Prevents Nc5.} (13... Bxa2 $5 {[%cal Ra2e6]} 14. Nc5 Bxc5 15. Bxc5 Be6 $11) 14. a3 {[%emt 0:05:52]} Be7 {[%emt 0:00:46]} 15. Rh1 {[%emt 0:00:12]} b5 {[%emt 0:02:34][%cal Bb7b5,Bb5b4][%mdl 32]} 16. Nc3 {[%emt 0:05:07]} (16. Nb6 $5 {[%cal Rb6a8]} Rd8 17. Nxd7 Rxd7 18. Be2 $11) 16... a5 {[%emt 0:03:41]} 17. f3 {[%emt 0:05:41]} b4 {[%emt 0:05:06]} 18. Nb1 {[%emt 0:00:46]} (18. Na4 $1 $11) 18... O-O {[%emt 0:04:41]} (18... Nc5 $1 $17) 19. Be2 {[%emt 0:09:53]} (19. Bc4 $11 {keeps the balance.} Bxc4 20. Rxd7) 19... Rfd8 {[%emt 0:04:21]} (19... Nc5 $1 $17 20. a4 Nxa4) 20. Rd3 {[%emt 0:05:48]} (20. a4 $11) 20... c5 {[%emt 0:06:07]} 21. c3 {[%emt 0:02:57]} Bb3 {[%emt 0:04:32] Against Rhd1} ({Black should try} 21... Rdb8 $17 {And now ...c4 would win.} 22. Rdd1 Nb6) 22. cxb4 $11 {[%emt 0:03:32]} c4 {[%emt 0:04:58]} 23. Rd5 {[%emt 0:02:13]} axb4 {[%emt 0:02:17]} 24. axb4 {[%emt 0:05:10]} Bxb4 {[%emt 0:02:18][%cal Oc4c3]} 25. Bd1 {[%emt 0:02:25]} Rac8 {[%emt 0:03:40]} 26. Nc3 {[%emt 0:09:24]} Nc5 {[%emt 0:07:10]} 27. Bxc5 {[%emt 0:03:05]} Rxd5 $2 {[%emt 0:02:50]} (27... Bxc5 $11 {and Black stays safe.} 28. Rxe5 Bf2) 28. Bxb4 $18 {[%emt 0:01:41]} Rdd8 {[%emt 0:00:57]} 29. Bxb3 {[%emt 0:02:01]} (29. g4 $18 {has better winning chances.}) 29... cxb3 $16 {[%emt 0:00:09]} 30. Rd1 {[%emt 0:00:39] aiming for Rxd8+.} Rd4 {[%emt 0:00:46]} 31. Ba3 {[%emt 0:01:01]} f6 {[%emt 0:02:20]} 32. Rd2 {[%emt 0:00:17]} Kf7 {[%emt 0:04:41]} 33. Kd1 {[%emt 0:00:23]} Rxd2+ {[%emt 0:02:57]} 34. Kxd2 {[%emt 0:00:05]} Ke6 {[%emt 0:00:27]} 35. g4 {[%emt 0:00:38]} g6 {[%emt 0:00:29]} 36. Ke3 {[%emt 0:01:10]} h5 {[%emt 0:06:19]} 37. gxh5 {[%emt 0:00:24]} gxh5 {[%emt 0:00:05]} 38. g3 {[%emt 0:00:41]} Rg8 {[%emt 0:02:59]} 39. Ne2 {[%emt 0:00:45]} Rc8 {[%emt 0:01:06]} 40. Nc3 {[%emt 0:00:48]} Rg8 {[%emt 0:00:27]} 41. Kf2 $1 {[%emt 0:00:00]} Rd8 {[%emt 0:00:00]} ({Better is} 41... Rc8) 42. Ne2 {[%emt 0:05:54]} (42. Nd5 $142) 42... Rc8 {[%emt 0:00:00]} 43. Ke3 {[%emt 0:02:33]} Rg8 {[%emt 0:00:00]} 44. Bb4 {[%emt 0:00:38]} Rc8 {[%emt 0:00:00]} 45. Bc3 {[%emt 0:00:13]} Rg8 {[%emt 0:00:00]} 46. Kd3 {[%emt 0:00:19]} Rc8 $2 {[%emt 0:00:00]} (46... Rd8+ $16 47. Ke3 Rg8) 47. Nc1 $1 $18 {[%emt 0:01:29]} Rd8+ {[%emt 0:03:30]} 48. Ke2 {[%emt 0:00:51]} Rg8 {[%emt 0:02:55]} 49. Kf2 {[%emt 0:00:09]} (49. Nxb3 Rxg3 50. Nc5+ Kf7 $11) 49... Rb8 {[%emt 0:00:44]} 50. Nd3 {[%emt 0:00:33] Hoping for f4.} Rc8 {[%emt 0:01:03]} 51. f4 {[%emt 0:02:06]} exf4 {[%emt 0:00:42]} (51... f5 {was called for.} 52. exf5+ (52. Bxe5 fxe4 53. Ne1 Rc2+ 54. Ke3 Rh2 $11) (52. Nxe5 $2 Rxc3 {[%mdl 64] Promotion} 53. bxc3 b2 $19) (52. fxe5 fxe4 53. Nf4+ Kf5 $16) 52... Kxf5 53. fxe5 (53. Bxe5 Ke4 $16) 53... Rc7) 52. Nxf4+ {[%emt 0:00:06]} Kf7 {[%emt 0:00:53][%cal Oc8c3] Threatens to win with ...Rxc3!} 53. Nd5 {[%emt 0:02:20]} (53. Nxh5 Rxc3 54. Ke1 (54. bxc3 $2 {is the wrong capture.} b2 $19) 54... Rc1+ 55. Kd2 Rc2+ 56. Kd1 Rxb2 $19) (53. Bd4 $18 {is more deadly.}) 53... f5 $16 {[%emt 0:06:28]} 54. Ke3 {[%emt 0:05:03]} ({Inferior is} 54. exf5 Rc5 55. Kf3 Rxd5 $17) 54... fxe4 {[%emt 0:06:45]} 55. Kxe4 {[%emt 0:00:05] Strongly threatening Be5.} Rg8 $2 {[%emt 0:04:59] [#]} (55... Rc4+ $16 56. Kd3 h4) 56. Kf3 $2 {[%emt 0:00:18]} (56. Be5 $1 $18 {and the rest is easy.}) 56... Rc8 {[%emt 0:01:42]} 57. Ke4 $2 {[%emt 0:00:46]} (57. Be5 $16) 57... Rg8 $1 $18 {[%emt 0:00:10] [#]} 58. Be5 $1 {[%emt 0:00:16]} h4 $2 {[%emt 0:03:04]} (58... Rg5 59. Nc3 Ke6) 59. gxh4 {[%emt 0:02:54]} Rg4+ {[%emt 0:00:11]} 60. Nf4 {[%emt 0:00:09]} Rxh4 {[%emt 0:00:35]} 61. Kd5 {[%emt 0:00:07]} Rg4 {[%emt 0:02:03]} 62. Kc4 {[%emt 0:00:17]} Rg3 {[%emt 0:01:18]} 63. Nd3 {[%emt 0:00:36]} Re3 {[%emt 0:01:22]} 64. Bd4 {[%emt 0:00:06]} Rh3 {[%emt 0:01:03]} 65. Nc5 {[%emt 0:00:09]} Ke7 {[%emt 0:00:12]} 66. Nxb3 {[%emt 0:00:11]} Kd6 {[%emt 0:00:19]} 67. Nc5 {[%emt 0:00:16]} Rh1 {[%emt 0:03:51]} 68. b4 {[%emt 0:00:27]} Rc1+ {[%emt 0:01:01]} 69. Kb5 {[%emt 0:00:23]} Rb1 {[%emt 0:00:47]} 70. Ka5 $2 {[%emt 0:01:27]} (70. Nb7+ $18 Kd5 71. Bc5) 70... Kc6 $2 {[%emt 0:00:57][%mdl 8192]} (70... Kd5 $14) 71. Na4 {[%emt 0:00:34]} Rb3 {[%emt 0:00:40]} 72. Bb2 {[%emt 0:00:28]} Kc7 {[%emt 0:02:09]} 73. b5 {[%emt 0:00:26] White wants to mate with Be5+.} Kb8 {[%emt 0:01:08]} (73... Re3 $18 74. Ka6 Re8) 74. Ka6 {[%emt 0:00:26]} Kc8 {[%emt 0:02:45]} 75. Nb6+ {[%emt 0:01:35]} Kd8 {[%emt 0:01:09]} 76. Bf6+ {[%emt 0:00:15]} Kc7 {[%emt 0:00:46]} 77. Be5+ {[%emt 0:00:20]} Kd8 {[%emt 0:00:07]} 78. Nc4 {[%emt 0:00:26]} Rb4 {[%emt 0:00:58]} 79. Na5 {[%emt 0:00:43]} Kd7 {[%emt 0:00:51]} 80. b6 {[%emt 0:00:27]} Ke6 {[%emt 0:01:15]} 81. Bg3 {[%emt 0:00:58]} Kf5 {[%emt 0:00:28]} 82. b7 {[%emt 0:00:12]} Ke4 {[%emt 0:00:25]} 83. b8=Q {[%emt 0:00:12]} Rxb8 {[%emt 0:00:05]} 84. Bxb8 {[%emt 0:00:04]} Kd5 {[%emt 0:00:10]} 85. Kb5 {[%emt 0:00:11]} Kd4 {[%emt 0:00:06]} 86. Kc6 {[%emt 0:00:21]} Ke4 {[%emt 0:00:06]} 87. Kc5 {[%emt 0:00:06]} Kd3 {[%emt 0:00:05]} 88. Nc4 {[%emt 0:00:30]} Ke4 {[%emt 0:00:06]} 89. Be5 {[%emt 0:00:32]} Kf5 {[%emt 0:00:20]} 90. Kd5 {[%emt 0:01:56]} Kg4 {[%emt 0:01:04]} 91. Ke4 {[%emt 0:00:10]} Kh3 {[%emt 0:00:04]} 92. Ne3 {[%emt 0:00:35]} Kh4 {[%emt 0:00:00]} 93. Kf4 {[%emt 0:01:04]} Kh3 {[%emt 0:00:00]} 94. Bf6 {[%emt 0:00:39]} Kh2 {[%emt 0:00:00]} 95. Kg4 {[%emt 0:00:28]} Kg1 {[%emt 0:00:06]} 96. Kg3 {[%emt 0:00:13]} Kh1 {[%emt 0:00:06]} 97. Ng4 {[%emt 0:01:06]} Kg1 {[%emt 0:00:04]} 98. Nf2 {[%emt 0:00:13]} Kf1 {[%emt 0:00:04]} 99. Kf3 {[%emt 0:00:03]} Kg1 {[%emt 0:00:14]} 100. Be5 {[%emt 0:00:06]} Kf1 {[%emt 0:00:06]} 101. Bh2 {[%emt 0:00:14]} Ke1 {[%emt 0:00:03]} 102. Ne4 {[%emt 0:00:29] White mates.} Kd1 {[%emt 0:00:41]} 103. Ke3 {[%emt 0:00:04]} Kc2 {[%emt 0:00:19]} 104. Nd2 {[%emt 0:00:23]} Kb2 {[%emt 0:00:49]} 105. Bd6 {[%emt 0:01:21]} Kc3 {[%emt 0:00:21]} 106. Be7 {[%emt 0:00:34]} Kc2 {[%emt 0:00:11]} 107. Bf6 {[%emt 0:00:18]} Kd1 {[%emt 0:00:15]} 108. Kd3 {[%emt 0:00:05]} Ke1 {[%emt 0:00:11]} 109. Bh4+ {[%emt 0:00:04]} Kd1 {[%emt 0:00:05]} 110. Bg3 {[%emt 0:00:29]} Kc1 {[%emt 0:00:05]} 111. Nc4 {[%emt 0:00:11]} Kd1 {[%emt 0:00:27]} 112. Nb2+ {[%emt 0:00:05]} Kc1 {[%emt 0:00:05]} 113. Kc3 {[%emt 0:00:02]} Kb1 {[%emt 0:00:04]} 114. Kb3 {[%emt 0:00:14]} Kc1 {[%emt 0:00:11]} 115. Bf4+ {[%emt 0:00:04]} Kb1 {[%emt 0:00:04]} 116. Nc4 {[%emt 0:00:16]} Ka1 {[%emt 0:00:04]} 117. Be3 {[%emt 0:00:06]} Kb1 {[%emt 0:20:30]} 118. Na3+ {[%emt 0:00:05]} Ka1 {[%emt 0:00:00]} 119. Bd4# {[%emt 0:00:03] Weighted Error Value: White=0.39/Black=0.34} 1-0